[Event "Early-Titled-Tuesday-Blitz-March-12-2024"]
[Site "Chess.com"]
[Date "2024.03.12"]
[Round "11"]
[White "Jospem"]
[Black "wonderfultime"]
[Result "0-1"]
[WhiteElo "3129"]
[BlackElo "3091"]
[TimeControl "180+1"]
[EndTime "10:04:29 PDT"]
[Termination "wonderfultime won on time"]

1. e4 {[%clk 0:03:00.9]} 1... e5 {[%clk 0:02:53.6]} 2. Nf3 {[%clk 0:03:00.9]}
2... Nc6 {[%clk 0:02:53.9]} 3. Bb5 {[%clk 0:03:01.1]} 3... a6 {[%clk 0:02:53.9]}
4. Ba4 {[%clk 0:03:01.2]} 4... Bc5 {[%clk 0:02:54.4]} 5. c3 {[%clk 0:02:51.8]}
5... Nge7 {[%clk 0:02:54.8]} 6. d4 {[%clk 0:02:52.3]} 6... exd4 {[%clk
0:02:55.1]} 7. cxd4 {[%clk 0:02:53.2]} 7... Bb4+ {[%clk 0:02:55.8]} 8. Bd2
{[%clk 0:02:53.4]} 8... Bxd2+ {[%clk 0:02:56.3]} 9. Nbxd2 {[%clk 0:02:54.1]}
9... d5 {[%clk 0:02:56.2]} 10. e5 {[%clk 0:02:50.8]} 10... O-O {[%clk
0:02:54.4]} 11. O-O {[%clk 0:02:50.2]} 11... Bg4 {[%clk 0:02:52.6]} 12. h3
{[%clk 0:02:45]} 12... Bh5 {[%clk 0:02:51.4]} 13. Bxc6 {[%clk 0:02:45.1]} 13...
Nxc6 {[%clk 0:02:50.4]} 14. Qb3 {[%clk 0:02:45.2]} 14... Rb8 {[%clk 0:02:44.4]}
15. Rac1 {[%clk 0:02:44.2]} 15... Qd7 {[%clk 0:02:38.4]} 16. Rfe1 {[%clk
0:02:42.3]} 16... Nd8 {[%clk 0:02:31.2]} 17. Qe3 {[%clk 0:02:35]} 17... c6
{[%clk 0:02:11.9]} 18. b4 {[%clk 0:02:29.2]} 18... Qe7 {[%clk 0:02:06.7]} 19. a3
{[%clk 0:02:25.8]} 19... Ne6 {[%clk 0:02:07.2]} 20. Nb3 {[%clk 0:02:20.7]} 20...
Rbe8 {[%clk 0:01:58.9]} 21. Nc5 {[%clk 0:02:05.7]} 21... Bxf3 {[%clk 0:01:57.9]}
22. Qxf3 {[%clk 0:01:50.1]} 22... Nxd4 {[%clk 0:01:56.7]} 23. Qe3 {[%clk
0:01:48.2]} 23... Ne6 {[%clk 0:01:56.6]} 24. Nd3 {[%clk 0:01:47.7]} 24... f6
{[%clk 0:01:51]} 25. Qg3 {[%clk 0:01:47.6]} 25... Qf7 {[%clk 0:01:46.4]} 26. Re3
{[%clk 0:01:40.7]} 26... Nd4 {[%clk 0:01:36]} 27. Ree1 {[%clk 0:01:18.2]} 27...
fxe5 {[%clk 0:01:29.8]} 28. Nxe5 {[%clk 0:01:18.3]} 28... Qf4 {[%clk 0:01:19.1]}
29. Qxf4 {[%clk 0:00:58]} 29... Rxf4 {[%clk 0:01:20]} 30. Nd3 {[%clk 0:00:58.9]}
30... Rfe4 {[%clk 0:01:13.3]} 31. Kf1 {[%clk 0:00:46]} 31... Rxe1+ {[%clk
0:01:09]} 32. Nxe1 {[%clk 0:00:46.9]} 32... Nb5 {[%clk 0:01:06.1]} 33. a4 {[%clk
0:00:43.4]} 33... Nd6 {[%clk 0:01:06.7]} 34. Nd3 {[%clk 0:00:43.8]} 34... Re4
{[%clk 0:00:58.7]} 35. f3 {[%clk 0:00:36.3]} 35... Rd4 {[%clk 0:00:58.9]} 36.
Ke2 {[%clk 0:00:34.2]} 36... a5 {[%clk 0:00:58.2]} 37. Rb1 {[%clk 0:00:26.3]}
37... axb4 {[%clk 0:00:58.1]} 38. Nxb4 {[%clk 0:00:27.2]} 38... Rc4 {[%clk
0:00:53.2]} 39. a5 {[%clk 0:00:25.9]} 39... Nb5 {[%clk 0:00:53.2]} 40. Rb2
{[%clk 0:00:26.3]} 40... Nc3+ {[%clk 0:00:45.4]} 41. Kd2 {[%clk 0:00:26.3]}
41... Na4 {[%clk 0:00:45.6]} 42. Rb1 {[%clk 0:00:25.3]} 42... Nc5 {[%clk
0:00:46.2]} 43. Ke3 {[%clk 0:00:12]} 43... g5 {[%clk 0:00:41.8]} 44. Nd3 {[%clk
0:00:12.3]} 44... Rc3 {[%clk 0:00:14.1]} 45. Kd4 {[%clk 0:00:12.3]} 45... Rb3
{[%clk 0:00:14.9]} 46. Rb2 {[%clk 0:00:07.3]} 46... Rxb2 {[%clk 0:00:13.3]} 47.
Nxb2 {[%clk 0:00:08.2]} 47... Nb3+ {[%clk 0:00:14.2]} 48. Ke5 {[%clk 0:00:07.9]}
48... Nxa5 {[%clk 0:00:15.1]} 49. Kd6 {[%clk 0:00:08.7]} 49... Nc4+ {[%clk
0:00:15.5]} 50. Ke6 {[%clk 0:00:03.8]} 50... Nxb2 {[%clk 0:00:14.9]} 51. Kf6
{[%clk 0:00:04.7]} 51... d4 {[%clk 0:00:14.9]} 52. Ke6 {[%clk 0:00:05.6]} 52...
d3 {[%clk 0:00:15.5]} 53. Kf6 {[%clk 0:00:06.5]} 53... d2 {[%clk 0:00:16.2]} 54.
Ke6 {[%clk 0:00:07.4]} 54... d1=Q {[%clk 0:00:16.9]} 55. Kf6 {[%clk 0:00:08.3]}
55... Qe2 {[%clk 0:00:17.1]} 56. Kxg5 {[%clk 0:00:08]} 56... Qxg2+ {[%clk
0:00:17.5]} 57. Kh6 {[%clk 0:00:08.9]} 57... Qxh3+ {[%clk 0:00:17.4]} 58. Kg5
{[%clk 0:00:08.9]} 58... Qxf3 {[%clk 0:00:17.9]} 59. Kh6 {[%clk 0:00:09.8]}
59... Qg3 {[%clk 0:00:17.6]} 60. Kh5 {[%clk 0:00:10]} 60... Kf7 {[%clk
0:00:18.3]} 0-1

[Event "Early-Titled-Tuesday-Blitz-March-12-2024"]
[Site "Chess.com"]
[Date "2024.03.12"]
[Round "11"]
[White "Hanging_pointer"]
[Black "Vladimir_Zakhartsov"]
[Result "0-1"]
[WhiteElo "2726"]
[BlackElo "2865"]
[TimeControl "180+1"]
[EndTime "10:04:34 PDT"]
[Termination "Vladimir_Zakhartsov won by checkmate"]

1. d4 {[%clk 0:03:00.9]} 1... Nf6 {[%clk 0:03:00]} 2. c4 {[%clk 0:03:01.4]} 2...
e6 {[%clk 0:03:00]} 3. Nf3 {[%clk 0:03:01.5]} 3... d5 {[%clk 0:02:59.8]} 4. Nc3
{[%clk 0:03:01.3]} 4... c5 {[%clk 0:02:59]} 5. cxd5 {[%clk 0:03:01.4]} 5... Nxd5
{[%clk 0:02:59.3]} 6. g3 {[%clk 0:03:02]} 6... cxd4 {[%clk 0:02:54.9]} 7. Nxd5
{[%clk 0:03:01.4]} 7... Qxd5 {[%clk 0:02:54.6]} 8. Qxd4 {[%clk 0:03:02]} 8...
Qxd4 {[%clk 0:02:50.6]} 9. Nxd4 {[%clk 0:03:02.3]} 9... Bb4+ {[%clk 0:02:42.1]}
10. Bd2 {[%clk 0:03:01.5]} 10... Bxd2+ {[%clk 0:02:42]} 11. Kxd2 {[%clk
0:03:02.4]} 11... Ke7 {[%clk 0:02:40.3]} 12. Bg2 {[%clk 0:02:27.2]} 12... Rd8
{[%clk 0:02:39.6]} 13. Ke3 {[%clk 0:02:26.8]} 13... e5 {[%clk 0:02:37.6]} 14.
Nb3 {[%clk 0:02:25.3]} 14... Na6 {[%clk 0:02:32.4]} 15. Rhd1 {[%clk 0:02:21]}
15... Nb4 {[%clk 0:02:24]} 16. Rxd8 {[%clk 0:02:14]} 16... Kxd8 {[%clk
0:02:24.9]} 17. Rd1+ {[%clk 0:02:14.2]} 17... Ke7 {[%clk 0:02:23.8]} 18. Rc1
{[%clk 0:02:05.7]} 18... Kd6 {[%clk 0:02:16]} 19. Rd1+ {[%clk 0:02:04.3]} 19...
Ke7 {[%clk 0:02:16]} 20. Rc1 {[%clk 0:02:04.5]} 20... Kd6 {[%clk 0:02:06.3]} 21.
Rd1+ {[%clk 0:02:04.6]} 21... Kc7 {[%clk 0:02:04]} 22. Rc1+ {[%clk 0:02:04.4]}
22... Kb6 {[%clk 0:02:00.6]} 23. a3 {[%clk 0:01:56.4]} 23... Nc6 {[%clk
0:02:00.7]} 24. Nc5 {[%clk 0:01:41.3]} 24... Rb8 {[%clk 0:01:46.8]} 25. b4
{[%clk 0:01:28.3]} 25... a6 {[%clk 0:01:44.8]} 26. Be4 {[%clk 0:01:24.5]} 26...
h6 {[%clk 0:01:43]} 27. f3 {[%clk 0:01:25]} 27... f6 {[%clk 0:01:39.8]} 28. g4
{[%clk 0:01:22.2]} 28... Nd4 {[%clk 0:01:37.3]} 29. Na4+ {[%clk 0:01:22.5]}
29... Kb5 {[%clk 0:01:36.7]} 30. Nc3+ {[%clk 0:01:14.3]} 30... Kb6 {[%clk
0:01:35.1]} 31. Na4+ {[%clk 0:01:14.3]} 31... Kb5 {[%clk 0:01:29.5]} 32. Nc3+
{[%clk 0:01:14.1]} 32... Kb6 {[%clk 0:01:29.9]} 33. Nd5+ {[%clk 0:01:11.7]}
33... Kb5 {[%clk 0:01:29.4]} 34. Rc7 {[%clk 0:01:11.5]} 34... f5 {[%clk
0:01:09.6]} 35. gxf5 {[%clk 0:01:06.4]} 35... Bxf5 {[%clk 0:01:10.5]} 36. Nc3+
{[%clk 0:00:52.2]} 36... Kb6 {[%clk 0:01:08.9]} 37. Rxg7 {[%clk 0:00:52.3]}
37... Bxe4 {[%clk 0:01:05.2]} 38. fxe4 {[%clk 0:00:52.7]} 38... Rc8 {[%clk
0:01:02]} 39. Kd3 {[%clk 0:00:50.1]} 39... Ka7 {[%clk 0:00:57.1]} 40. Re7 {[%clk
0:00:44.5]} 40... Nc6 {[%clk 0:00:50.5]} 41. Re6 {[%clk 0:00:40.2]} 41... h5
{[%clk 0:00:50.1]} 42. Rh6 {[%clk 0:00:40]} 42... Rg8 {[%clk 0:00:49.2]} 43.
Rxh5 {[%clk 0:00:39.8]} 43... Rg1 {[%clk 0:00:50]} 44. b5 {[%clk 0:00:36.5]}
44... axb5 {[%clk 0:00:49.7]} 45. Nxb5+ {[%clk 0:00:37.4]} 45... Kb6 {[%clk
0:00:50.3]} 46. Nd6 {[%clk 0:00:36.8]} 46... Ra1 {[%clk 0:00:47.8]} 47. Nc4+
{[%clk 0:00:36.1]} 47... Kc5 {[%clk 0:00:46.4]} 48. Nxe5 {[%clk 0:00:36.2]}
48... Rxa3+ {[%clk 0:00:46.1]} 49. Kd2 {[%clk 0:00:36.4]} 49... Na5 {[%clk
0:00:28]} 50. Nd3+ {[%clk 0:00:35.1]} 50... Kd4 {[%clk 0:00:25.8]} 51. Rb5
{[%clk 0:00:26.9]} 51... Nc4+ {[%clk 0:00:20.2]} 52. Ke1 {[%clk 0:00:16]} 52...
Ke3 {[%clk 0:00:18.1]} 53. Kf1 {[%clk 0:00:14.9]} 53... Nd2+ {[%clk 0:00:14.2]}
54. Kg2 {[%clk 0:00:14.3]} 54... Kxe2 {[%clk 0:00:14.6]} 55. Nf4+ {[%clk
0:00:13]} 55... Ke3 {[%clk 0:00:13.9]} 56. Nd5+ {[%clk 0:00:12.5]} 56... Kxe4
{[%clk 0:00:12.5]} 57. Nf6+ {[%clk 0:00:13.1]} 57... Kf4 {[%clk 0:00:11]} 58.
Rxb7 {[%clk 0:00:12.8]} 58... Ra2 {[%clk 0:00:10.3]} 59. Nh5+ {[%clk 0:00:10.7]}
59... Kg4 {[%clk 0:00:09.7]} 60. Ng3 {[%clk 0:00:11.2]} 60... Nf3+ {[%clk
0:00:09]} 61. Kf1 {[%clk 0:00:10.6]} 61... Nxh2+ {[%clk 0:00:07.1]} 62. Kg1
{[%clk 0:00:11.2]} 62... Kxg3 {[%clk 0:00:06.5]} 63. Rb3+ {[%clk 0:00:11]} 63...
Nf3+ {[%clk 0:00:06.8]} 64. Kf1 {[%clk 0:00:11]} 64... Rf2# {[%clk 0:00:07]} 0-1

[Event "Early-Titled-Tuesday-Blitz-March-12-2024"]
[Site "Chess.com"]
[Date "2024.03.12"]
[Round "11"]
[White "sergoy"]
[Black "Polish_fighter3000"]
[Result "0-1"]
[WhiteElo "3024"]
[BlackElo "3131"]
[TimeControl "180+1"]
[EndTime "10:04:58 PDT"]
[Termination "Polish_fighter3000 won by resignation"]

1. d4 {[%clk 0:02:59.5]} 1... Nf6 {[%clk 0:02:58.8]} 2. c4 {[%clk 0:02:57.9]}
2... g6 {[%clk 0:02:59.2]} 3. Nc3 {[%clk 0:02:57.9]} 3... Bg7 {[%clk 0:02:59.3]}
4. e4 {[%clk 0:02:58.5]} 4... d6 {[%clk 0:02:59.9]} 5. Nf3 {[%clk 0:02:59.1]}
5... O-O {[%clk 0:03:00.5]} 6. Be2 {[%clk 0:02:59.8]} 6... e5 {[%clk 0:02:59.2]}
7. O-O {[%clk 0:03:00.2]} 7... h6 {[%clk 0:02:58]} 8. Re1 {[%clk 0:02:58.2]}
8... a5 {[%clk 0:02:56.2]} 9. Rb1 {[%clk 0:02:45.9]} 9... Nc6 {[%clk 0:02:48.8]}
10. d5 {[%clk 0:02:41.2]} 10... Ne7 {[%clk 0:02:45.4]} 11. a3 {[%clk 0:02:36.4]}
11... a4 {[%clk 0:02:43.1]} 12. Nd2 {[%clk 0:02:27]} 12... Bd7 {[%clk
0:02:39.6]} 13. Nf1 {[%clk 0:01:58.9]} 13... Nh7 {[%clk 0:02:30.8]} 14. Ng3
{[%clk 0:01:58.1]} 14... b6 {[%clk 0:02:21.2]} 15. Bd2 {[%clk 0:01:55]} 15... h5
{[%clk 0:02:19.5]} 16. Nf1 {[%clk 0:01:51.9]} 16... h4 {[%clk 0:02:15.7]} 17. h3
{[%clk 0:01:51.7]} 17... f5 {[%clk 0:02:15.8]} 18. exf5 {[%clk 0:01:50.4]} 18...
gxf5 {[%clk 0:02:15.6]} 19. Nh2 {[%clk 0:01:45.2]} 19... e4 {[%clk 0:02:03.7]}
20. Bh5 {[%clk 0:01:39.7]} 20... Nf6 {[%clk 0:01:29.5]} 21. Bg5 {[%clk
0:01:35.5]} 21... Nxh5 {[%clk 0:01:29.9]} 22. Qxh5 {[%clk 0:01:35.4]} 22... Qe8
{[%clk 0:01:30.5]} 23. Qxe8 {[%clk 0:01:22.9]} 23... Raxe8 {[%clk 0:01:31.4]}
24. Bxh4 {[%clk 0:01:21.6]} 24... Ng6 {[%clk 0:01:30.4]} 25. Bg5 {[%clk
0:01:21.9]} 25... Ne5 {[%clk 0:01:24.6]} 26. Nb5 {[%clk 0:00:59.8]} 26... Nxc4
{[%clk 0:01:24.3]} 27. Nxc7 {[%clk 0:00:55.2]} 27... Rc8 {[%clk 0:01:23.9]} 28.
Ne6 {[%clk 0:00:55.1]} 28... Bxe6 {[%clk 0:01:17.6]} 29. dxe6 {[%clk 0:00:56]}
29... Bxb2 {[%clk 0:01:17.7]} 30. Nf1 {[%clk 0:00:43.9]} 30... Bxa3 {[%clk
0:00:28.6]} 31. Ne3 {[%clk 0:00:44.2]} 31... Rfe8 {[%clk 0:00:29.2]} 32. Nxc4
{[%clk 0:00:23.1]} 32... Rxc4 {[%clk 0:00:30.1]} 33. Rxb6 {[%clk 0:00:23.3]}
33... Rxe6 {[%clk 0:00:27.6]} 34. Ra6 {[%clk 0:00:22.4]} 34... Bb2 {[%clk
0:00:24.8]} 35. Re3 {[%clk 0:00:19.3]} 35... Kf7 {[%clk 0:00:12.5]} 36. Ra7+
{[%clk 0:00:18.6]} 36... Ke8 {[%clk 0:00:12.6]} 37. Rg3 {[%clk 0:00:16.7]} 37...
Rg6 {[%clk 0:00:12.4]} 38. h4 {[%clk 0:00:16.1]} 38... Be5 {[%clk 0:00:09]} 39.
f4 {[%clk 0:00:11.9]} 39... Bd4+ {[%clk 0:00:04.4]} 40. Kh2 {[%clk 0:00:05.6]}
40... Bxa7 {[%clk 0:00:05.3]} 41. h5 {[%clk 0:00:06.1]} 41... Rg7 {[%clk
0:00:05.8]} 42. h6 {[%clk 0:00:06.5]} 42... Rh7 {[%clk 0:00:06.1]} 43. Ra3
{[%clk 0:00:04.7]} 43... Bc5 {[%clk 0:00:05.3]} 44. Ra1 {[%clk 0:00:04.3]} 44...
d5 {[%clk 0:00:05.4]} 45. g4 {[%clk 0:00:04.8]} 45... Bf8 {[%clk 0:00:05.2]} 46.
Kg3 {[%clk 0:00:04]} 46... Bxh6 {[%clk 0:00:05.2]} 47. gxf5 {[%clk 0:00:04.9]}
47... Bxg5 {[%clk 0:00:05]} 48. fxg5 {[%clk 0:00:05.8]} 48... e3 {[%clk
0:00:05.6]} 49. g6 {[%clk 0:00:06.3]} 49... Rh5 {[%clk 0:00:05.1]} 50. Rf1
{[%clk 0:00:05.8]} 50... e2 {[%clk 0:00:05.3]} 51. Re1 {[%clk 0:00:06.3]} 51...
Rxf5 {[%clk 0:00:05.4]} 52. Rxe2+ {[%clk 0:00:07]} 52... Re4 {[%clk 0:00:05.3]}
53. Rb2 {[%clk 0:00:07]} 53... Rg5+ {[%clk 0:00:05.6]} 54. Kf3 {[%clk
0:00:07.1]} 54... Rxg6 {[%clk 0:00:06.5]} 55. Rb8+ {[%clk 0:00:07.6]} 55... Kf7
{[%clk 0:00:07]} 56. Rb7+ {[%clk 0:00:08.5]} 56... Kf6 {[%clk 0:00:07.5]} 57.
Rb5 {[%clk 0:00:08.4]} 57... Ke5 {[%clk 0:00:07.6]} 58. Ra5 {[%clk 0:00:09]}
58... Rf6+ {[%clk 0:00:08.3]} 59. Kg3 {[%clk 0:00:09.6]} 59... Ref4 {[%clk
0:00:06.4]} 60. Kg2 {[%clk 0:00:09.9]} 60... Rf2+ {[%clk 0:00:06.5]} 61. Kg3
{[%clk 0:00:10.4]} 61... R6f3+ {[%clk 0:00:07.1]} 62. Kg4 {[%clk 0:00:10.6]}
62... Rf4+ {[%clk 0:00:07.8]} 63. Kg3 {[%clk 0:00:11.1]} 63... R2f3+ {[%clk
0:00:08.2]} 64. Kg2 {[%clk 0:00:11.8]} 64... Rb3 {[%clk 0:00:08.6]} 65. Ra8
{[%clk 0:00:11.7]} 65... Rc4 {[%clk 0:00:08.9]} 66. Re8+ {[%clk 0:00:11.8]}
66... Kd4 {[%clk 0:00:09.4]} 67. Re2 {[%clk 0:00:12.6]} 67... a3 {[%clk
0:00:09.7]} 68. Rd2+ {[%clk 0:00:12.9]} 68... Kc5 {[%clk 0:00:10]} 69. Kh1
{[%clk 0:00:12.3]} 69... Rc1+ {[%clk 0:00:09.8]} 70. Kg2 {[%clk 0:00:11.6]}
70... Rb2 {[%clk 0:00:10.3]} 71. Rf2 {[%clk 0:00:11.8]} 71... Rcc2 {[%clk
0:00:09.6]} 72. Rxc2+ {[%clk 0:00:11.9]} 72... Rxc2+ {[%clk 0:00:10.5]} 0-1

[Event "Early-Titled-Tuesday-Blitz-March-12-2024"]
[Site "Chess.com"]
[Date "2024.03.12"]
[Round "11"]
[White "MatthewG-p4p"]
[Black "PLAYER_2006_M"]
[Result "1-0"]
[WhiteElo "2903"]
[BlackElo "2979"]
[TimeControl "180+1"]
[EndTime "10:05:22 PDT"]
[Termination "MatthewG-p4p won by resignation"]

1. e4 {[%clk 0:02:57.9]} 1... e5 {[%clk 0:02:57.7]} 2. Nf3 {[%clk 0:02:58.3]}
2... Nf6 {[%clk 0:02:56.2]} 3. d4 {[%clk 0:02:58]} 3... Nxe4 {[%clk 0:02:56.4]}
4. Bd3 {[%clk 0:02:57.9]} 4... d5 {[%clk 0:02:57]} 5. Nxe5 {[%clk 0:02:58.4]}
5... Nd7 {[%clk 0:02:57.7]} 6. Nxd7 {[%clk 0:02:58.6]} 6... Bxd7 {[%clk
0:02:58.6]} 7. O-O {[%clk 0:02:58.8]} 7... Bd6 {[%clk 0:02:59.1]} 8. Nc3 {[%clk
0:02:59.5]} 8... Nxc3 {[%clk 0:02:58.7]} 9. bxc3 {[%clk 0:03:00.4]} 9... O-O
{[%clk 0:02:59.2]} 10. Qh5 {[%clk 0:02:59.2]} 10... f5 {[%clk 0:02:59.7]} 11.
Bg5 {[%clk 0:02:53.2]} 11... Qe8 {[%clk 0:02:55.4]} 12. Qf3 {[%clk 0:02:53.3]}
12... Qf7 {[%clk 0:02:52.2]} 13. Bf4 {[%clk 0:02:47.4]} 13... Bxf4 {[%clk
0:02:49]} 14. Qxf4 {[%clk 0:02:48.3]} 14... c6 {[%clk 0:02:49.1]} 15. Rfe1
{[%clk 0:02:33.4]} 15... Rae8 {[%clk 0:02:44.5]} 16. h4 {[%clk 0:02:28.4]} 16...
Bc8 {[%clk 0:02:36.1]} 17. a4 {[%clk 0:02:24.4]} 17... a5 {[%clk 0:02:33.4]} 18.
g3 {[%clk 0:02:12.3]} 18... g6 {[%clk 0:02:22.5]} 19. Kg2 {[%clk 0:02:03.8]}
19... Re7 {[%clk 0:02:20.8]} 20. Rxe7 {[%clk 0:01:49.7]} 20... Qxe7 {[%clk
0:02:21.7]} 21. c4 {[%clk 0:01:50.4]} 21... dxc4 {[%clk 0:02:14.8]} 22. Bxc4+
{[%clk 0:01:51.3]} 22... Kg7 {[%clk 0:02:14.5]} 23. Rb1 {[%clk 0:01:34.1]} 23...
Rd8 {[%clk 0:02:11.2]} 24. c3 {[%clk 0:01:29]} 24... Re8 {[%clk 0:02:02.1]} 25.
Bd3 {[%clk 0:01:15.4]} 25... h6 {[%clk 0:01:54.1]} 26. c4 {[%clk 0:00:47.6]}
26... Qf6 {[%clk 0:01:41.5]} 27. d5 {[%clk 0:00:45.1]} 27... Qe5 {[%clk
0:01:22.6]} 28. Qxe5+ {[%clk 0:00:42.8]} 28... Rxe5 {[%clk 0:01:23.5]} 29. dxc6
{[%clk 0:00:24.2]} 29... bxc6 {[%clk 0:01:24.4]} 30. Rb6 {[%clk 0:00:24.8]}
30... Rc5 {[%clk 0:01:22.7]} 31. Kf3 {[%clk 0:00:24.4]} 31... Re5 {[%clk
0:00:30.2]} 32. Kf4 {[%clk 0:00:16]} 32... Re6 {[%clk 0:00:24.4]} 33. c5 {[%clk
0:00:16.2]} 33... Kf6 {[%clk 0:00:18.8]} 34. Rb8 {[%clk 0:00:16.7]} 34... g5+
{[%clk 0:00:18.1]} 35. hxg5+ {[%clk 0:00:16.5]} 35... hxg5+ {[%clk 0:00:19]} 36.
Kf3 {[%clk 0:00:17.4]} 36... Re8 {[%clk 0:00:16.3]} 37. Rb6 {[%clk 0:00:10.2]}
37... Ke5 {[%clk 0:00:16]} 38. Ke3 {[%clk 0:00:04.7]} 38... Kd5+ {[%clk
0:00:16.5]} 39. Kd2 {[%clk 0:00:05.5]} 39... Kxc5 {[%clk 0:00:17.1]} 40. Rb8
{[%clk 0:00:06.3]} 40... Bd7 {[%clk 0:00:16.6]} 41. Rb7 {[%clk 0:00:06.7]} 41...
Be6 {[%clk 0:00:17.1]} 42. Rg7 {[%clk 0:00:06.9]} 42... g4 {[%clk 0:00:15.5]}
43. Kc3 {[%clk 0:00:03.7]} 43... Rb8 {[%clk 0:00:12.5]} 44. Bc2 {[%clk 0:00:04]}
44... Rb4 {[%clk 0:00:09.6]} 45. Ra7 {[%clk 0:00:04.3]} 45... Rc4+ {[%clk
0:00:07.8]} 46. Kd2 {[%clk 0:00:04.9]} 46... Kb6 {[%clk 0:00:07.5]} 47. Re7
{[%clk 0:00:04.3]} 47... Rd4+ {[%clk 0:00:07.2]} 48. Kc3 {[%clk 0:00:04.3]}
48... Rd6 {[%clk 0:00:07.8]} 49. Re8 {[%clk 0:00:04]} 49... Kc5 {[%clk
0:00:05.7]} 50. Ra8 {[%clk 0:00:04.2]} 50... Kb6 {[%clk 0:00:06.2]} 51. Rb8+
{[%clk 0:00:04.8]} 51... Ka7 {[%clk 0:00:06.3]} 52. Re8 {[%clk 0:00:05.5]} 52...
Kb7 {[%clk 0:00:06.1]} 53. Re7+ {[%clk 0:00:05.7]} 53... Kb6 {[%clk 0:00:06.7]}
54. Re8 {[%clk 0:00:06.2]} 54... Bd7 {[%clk 0:00:07.3]} 55. Rb8+ {[%clk
0:00:06.3]} 55... Kc7 {[%clk 0:00:06.8]} 56. Ra8 {[%clk 0:00:06.8]} 56... Kb6
{[%clk 0:00:07.5]} 57. Rb8+ {[%clk 0:00:06.9]} 57... Ka7 {[%clk 0:00:08.1]} 58.
Rf8 {[%clk 0:00:07.8]} 58... Rd5 {[%clk 0:00:07.4]} 59. Bb3 {[%clk 0:00:08.4]}
59... Rd6 {[%clk 0:00:06.1]} 60. Bc2 {[%clk 0:00:08.1]} 60... Kb6 {[%clk
0:00:04.2]} 61. Bxf5 {[%clk 0:00:07.3]} 61... Bxf5 {[%clk 0:00:04.9]} 62. Rxf5
{[%clk 0:00:08.2]} 62... Rd1 {[%clk 0:00:03.6]} 63. Rf4 {[%clk 0:00:08.4]} 63...
Rf1 {[%clk 0:00:04.3]} 64. Rxg4 {[%clk 0:00:08.6]} 64... Rxf2 {[%clk 0:00:04.9]}
65. Rf4 {[%clk 0:00:08.5]} 65... Rg2 {[%clk 0:00:05]} 66. g4 {[%clk 0:00:08.8]}
66... Rg3+ {[%clk 0:00:04.5]} 67. Kd4 {[%clk 0:00:09.2]} 67... Ra3 {[%clk
0:00:04.1]} 68. Ke5 {[%clk 0:00:09.8]} 68... Kc5 {[%clk 0:00:04]} 69. g5 {[%clk
0:00:09.9]} 69... Re3+ {[%clk 0:00:04.6]} 70. Kf6 {[%clk 0:00:10]} 70... Rg3
{[%clk 0:00:02.8]} 71. g6 {[%clk 0:00:10.4]} 71... Kd5 {[%clk 0:00:03.6]} 72.
Rf5+ {[%clk 0:00:09.2]} 72... Kd6 {[%clk 0:00:03]} 73. Rxa5 {[%clk 0:00:09.3]}
73... c5 {[%clk 0:00:03.1]} 74. g7 {[%clk 0:00:09.4]} 74... c4 {[%clk
0:00:03.2]} 75. Rg5 {[%clk 0:00:08.9]} 75... Rf3+ {[%clk 0:00:01.4]} 76. Kg6
{[%clk 0:00:09.4]} 76... c3 {[%clk 0:00:01.8]} 77. g8=Q {[%clk 0:00:09.7]} 1-0